[Event "ONJK-DE 2019"]
[Site "Borne"]
[Date "2019.08.06"]
[Round "3.5"]
[White "Van Steijn, Jefta"]
[Black "Wieggers, Wouter"]
[Result "1/2-1/2"]
[ECO "B01"]
[WhiteElo "947"]
[BlackElo "1288"]
[Annotator "NA"]
[PlyCount "127"]
[EventDate "2019.08.05"]
[EventType "swiss"]
[EventCountry "NED"]
[SourceTitle "playchess.com"]
[Source "ChessBase"]
[SourceQuality "1"]
[TimeControl "2400+30"]

1. e4 {[%emt 0:00:00]} d5 {[%emt 0:00:00]} 2. exd5 {[%emt 0:00:00]} Nf6 {[%emt 0:00:00]} 3. c4 {[%emt 0:00:18]} e6 {[%emt 0:00:00]} 4. dxe6 {[%emt 0:00:30]} Bxe6 {[%emt 0:00:00]} 5. d4 {[%emt 0:00:25]} Bb4+ {[%emt 0:00:31]} 6. Bd2 {[%emt 0:00:35]} Bxd2+ {[%emt 0:01:39]} 7. Qxd2 {[%emt 0:00:17]} O-O {[%emt 0:00:48]} 8. Nf3 {[%emt 0:00:47]} Re8 {[%emt 0:00:51]} 9. Ne5 {[%emt 0:01:21]} Nbd7 {[%emt 0:01:38]} 10. Be2 {[%emt 0:00:56]} Nxe5 {[%emt 0:05:05]} 11. dxe5 {[%emt 0:00:10]} Nd7 {[%emt 0:01:07]} 12. f4 {[%emt 0:01:43]} f6 {[%emt 0:01:35]} 13. exf6 {[%emt 0:02:16]} Bxc4 {[%emt 0:02:11]} 14. Nc3 {[%emt 0:00:44]} Nxf6 {[%emt 0:02:52]} 15. O-O-O {[%emt 0:01:07]} Qxd2+ {[%emt 0:02:24]} 16. Rxd2 {[%emt 0:00:12]} Bxe2 {[%emt 0:00:38]} 17. Rxe2 {[%emt 0:00:24]} Rxe2 {[%emt 0:02:01]} 18. Nxe2 {[%emt 0:00:08]} Re8 {[%emt 0:00:28]} 19. Nc3 {[%emt 0:00:59]} Kf7 {[%emt 0:04:57]} 20. Nb5 {[%emt 0:01:34]} Nd5 {[%emt 0:01:12]} 21. g3 {[%emt 0:00:54]} Kg8 {[%emt 0:01:32]} 22. Rd1 {[%emt 0:01:18]} c6 {[%emt 0:01:48]} 23. Nd6 {[%emt 0:01:04]} Re7 {[%emt 0:02:25]} 24. Nf5 {[%emt 0:01:02]} Re2 {[%emt 0:01:22]} 25. Rd2 {[%emt 0:00:50]} Re6 {[%emt 0:02:46]} 26. Kc2 {[%emt 0:01:18]} g6 {[%emt 0:01:32]} 27. Nd4 {[%emt 0:00:49]} Re3 {[%emt 0:00:52]} 28. a3 {[%emt 0:01:10]} Re8 {[%emt 0:02:08]} 29. Kd3 {[%emt 0:00:55]} Rd8 {[%emt 0:01:56]} 30. Ke2 {[%emt 0:01:13]} Re8+ {[%emt 0:01:03]} 31. Kf2 {[%emt 0:01:09]} Nf6 {[%emt 0:01:13]} 32. Kg2 {[%emt 0:00:53]} Nd5 {[%emt 0:00:27]} 33. Kf2 {[%emt 0:00:48]} Nf6 {[%emt 0:00:51]} 34. Kg2 {[%emt 0:00:09]} Ng4 {[%emt 0:01:45]} 35. h3 {[%emt 0:01:06]} Ne3+ {[%emt 0:00:37]} 36. Kf2 {[%emt 0:00:28]} Nc4 {[%emt 0:00:09]} 37. Rc2 {[%emt 0:00:26]} Nd6 {[%emt 0:00:15]} 38. Kf3 {[%emt 0:00:42]} Kf7 {[%emt 0:00:51]} 39. h4 {[%emt 0:01:23]} h6 {[%emt 0:01:20]} 40. Kg4 {[%emt 0:01:28]} h5+ {[%emt 0:00:38]} 41. Kf3 {[%emt 0:00:17]} Nf5 {[%emt 0:01:18]} 42. Nxf5 {[%emt 0:00:52]} gxf5 {[%emt 0:00:07]} 43. Rc5 {[%emt 0:01:05]} Kf6 {[%emt 0:00:11]} 44. b4 {[%emt 0:00:26]} Rd8 {[%emt 0:00:20]} 45. Rc3 {[%emt 0:00:11]} Rd5 {[%emt 0:01:22]} 46. Kf2 {[%emt 0:00:47]} Ke6 {[%emt 0:00:46]} 47. a4 {[%emt 0:01:21]} Rd4 {[%emt 0:00:35]} 48. Rb3 {[%emt 0:00:27]} Kd5 {[%emt 0:00:42]} 49. Ke3 {[%emt 0:00:36]} Kc4 {[%emt 0:00:25]} 50. Rb1 {[%emt 0:00:46]} Rd3+ {[%emt 0:00:19]} 51. Kf2 {[%emt 0:00:31]} Rb3 {[%emt 0:00:09]} 52. Re1 {[%emt 0:00:29]} Kxb4 {[%emt 0:00:55]} 53. Re5 {[%emt 0:00:12]} c5 {[%emt 0:00:32]} 54. Rxf5 {[%emt 0:00:36]} c4 {[%emt 0:00:16]} 55. Ke2 {[%emt 0:00:22]} Rb2+ {[%emt 0:00:52]} 56. Kd1 {[%emt 0:00:19]} c3 {[%emt 0:00:20]} 57. Kc1 {[%emt 0:00:07]} Ka3 {[%emt 0:00:14]} 58. Rc5 {[%emt 0:00:18]} Kb4 {[%emt 0:00:48]} 59. Rc7 {[%emt 0:00:22]} b6 {[%emt 0:00:43]} 60. Rxa7 {[%emt 0:00:50]} Kb3 {[%emt 0:02:05]} 61. Rb7 {[%emt 0:00:11]} Rc2+ {[%emt 0:00:05]} 62. Kb1 {[%emt 0:00:34]} Rb2+ {[%emt 0:00:11]} 63. Kc1 {[%emt 0:00:08]} Rc2+ {[%emt 0:00:04]} 64. Kb1 {[%emt 0:01:45]} 1/2-1/2

[Event "ONJK-DE 2019"]
[Site "Borne"]
[Date "2019.08.06"]
[Round "3.6"]
[White "Van Leeuwen, Robin"]
[Black "Waersegers, Brent"]
[Result "1/2-1/2"]
[ECO "C34"]
[WhiteElo "1446"]
[BlackElo "947"]
[Annotator "NA"]
[PlyCount "96"]
[EventDate "2019.08.05"]
[EventType "swiss"]
[EventCountry "NED"]
[SourceTitle "playchess.com"]
[Source "ChessBase"]
[SourceQuality "1"]
[TimeControl "2400+30"]

1. e4 {[%emt 0:00:00]} e5 {[%emt 0:00:00]} 2. f4 {[%emt 0:00:30]} exf4 {[%emt 0:00:30]} 3. Nf3 {[%emt 0:00:30]} c6 {[%emt 0:00:30]} 4. d4 {[%emt 0:00:39]} d5 {[%emt 0:00:30]} 5. e5 {[%emt 0:00:30]} f6 {[%emt 0:00:30]} 6. Bxf4 {[%emt 0:00:35]} c5 {[%emt 0:00:30]} 7. c3 {[%emt 0:00:32]} Nc6 {[%emt 0:00:30]} 8. Be2 {[%emt 0:00:47]} Bg4 {[%emt 0:00:35]} 9. O-O {[%emt 0:01:12]} Qb6 {[%emt 0:00:46]} 10. exf6 {[%emt 0:07:46]} Nxf6 {[%emt 0:03:09]} 11. Ne5 {[%emt 0:04:33]} Bxe2 {[%emt 0:00:53]} 12. Qxe2 {[%emt 0:00:30]} Ne4 {[%emt 0:01:03]} 13. Nxc6 {[%emt 0:01:37]} Qxc6 {[%emt 0:00:30]} 14. Nd2 {[%emt 0:01:58]} Be7 {[%emt 0:00:30]} 15. Nxe4 {[%emt 0:01:59]} dxe4 {[%emt 0:00:30]} 16. Be5 {[%emt 0:00:59]} Bf6 {[%emt 0:00:30]} 17. Bxf6 {[%emt 0:02:37]} gxf6 {[%emt 0:00:30]} 18. Rae1 {[%emt 0:00:30]} cxd4 {[%emt 0:01:35]} 19. Qxe4+ {[%emt 0:00:49]} Qxe4 {[%emt 0:00:37]} 20. Rxe4+ {[%emt 0:00:30]} Kf7 {[%emt 0:00:30]} 21. Rxd4 {[%emt 0:00:30]} Rad8 {[%emt 0:00:58]} 22. Rfd1 {[%emt 0:00:39]} Rde8 {[%emt 0:01:04]} 23. Rd7+ {[%emt 0:01:03]} Re7 {[%emt 0:00:30]} 24. Kf2 {[%emt 0:00:30]} Rg8 {[%emt 0:00:30]} 25. R1d5 {[%emt 0:02:05]} Rg6 {[%emt 0:01:17]} 26. Kf3 {[%emt 0:00:32]} h6 {[%emt 0:00:53]} 27. g3 {[%emt 0:01:44]} b6 {[%emt 0:01:02]} 28. a4 {[%emt 0:01:57]} a5 {[%emt 0:01:11]} 29. Rxe7+ {[%emt 0:02:07]} Kxe7 {[%emt 0:00:30]} 30. Rb5 {[%emt 0:00:30]} f5 {[%emt 0:01:27]} 31. Rxf5 {[%emt 0:00:31]} Ke6 {[%emt 0:01:07]} 32. Rb5 {[%emt 0:01:02]} Rf6+ {[%emt 0:00:30]} 33. Ke3 {[%emt 0:01:24]} Ke7 {[%emt 0:00:44]} 34. b4 {[%emt 0:01:18]} Rc6 {[%emt 0:01:37]} 35. Kd3 {[%emt 0:01:16]} Rd6+ {[%emt 0:01:16]} 36. Kc2 {[%emt 0:00:30]} axb4 {[%emt 0:02:26]} 37. cxb4 {[%emt 0:00:30]} Rc6+ {[%emt 0:00:54]} 38. Kb3 {[%emt 0:01:04]} Kd7 {[%emt 0:00:39]} 39. a5 {[%emt 0:02:15]} bxa5 {[%emt 0:01:00]} 40. bxa5 {[%emt 0:02:07]} Ra6 {[%emt 0:01:20]} 41. Kb4 {[%emt 0:00:55]} Kc6 {[%emt 0:01:43]} 42. Rc5+ {[%emt 0:01:22]} Kd6 {[%emt 0:00:59]} 43. Kb5 {[%emt 0:00:36]} Rxa5+ {[%emt 0:00:30]} 44. Kxa5 {[%emt 0:00:30]} Kxc5 {[%emt 0:00:30]} 45. Ka6 {[%emt 0:00:30]} Kd5 {[%emt 0:00:30]} 46. Kb5 {[%emt 0:01:10]} Ke4 {[%emt 0:00:30]} 47. Kc4 {[%emt 0:00:30]} Kf3 {[%emt 0:00:30]} 48. Kd3 {[%emt 0:00:30]} h5 {[%emt 0:00:37]} 1/2-1/2

[Event "ONJK-DE 2019"]
[Site "Borne"]
[Date "2019.08.06"]
[Round "3.7"]
[White "Boumphrey, Luke S"]
[Black "Feng, Elysia"]
[Result "0-1"]
[ECO "D35"]
[WhiteElo "1926"]
[BlackElo "1314"]
[Annotator "NA"]
[PlyCount "78"]
[EventDate "2019.08.05"]
[EventType "swiss"]
[EventCountry "NED"]
[SourceTitle "playchess.com"]
[Source "ChessBase"]
[SourceQuality "1"]
[TimeControl "2400+30"]

1. d4 {[%emt 0:00:00]} d5 {[%emt 0:00:00]} 2. c4 {[%emt 0:00:00]} e6 {[%emt 0:00:00]} 3. cxd5 {[%emt 0:00:00]} exd5 {[%emt 0:00:07]} 4. Nc3 {[%emt 0:00:07]} Nf6 {[%emt 0:00:06]} 5. Bg5 {[%emt 0:00:06]} Bb4 {[%emt 0:00:16]} 6. a3 {[%emt 0:00:39]} Bxc3+ {[%emt 0:00:24]} 7. bxc3 {[%emt 0:00:08]} h6 {[%emt 0:00:04]} 8. Bh4 {[%emt 0:00:18]} Nc6 {[%emt 0:00:22]} 9. Nf3 {[%emt 0:00:17]} Bf5 {[%emt 0:00:19]} 10. e3 {[%emt 0:00:14]} Qd6 {[%emt 0:01:35]} 11. Bb5 {[%emt 0:00:13]} a6 {[%emt 0:00:09]} 12. Ba4 {[%emt 0:00:21]} O-O {[%emt 0:00:29]} 13. O-O {[%emt 0:00:17]} Rfe8 {[%emt 0:01:01]} 14. Rb1 {[%emt 0:00:54]} b5 {[%emt 0:00:14]} 15. Bc2 {[%emt 0:00:21]} Bg4 {[%emt 0:00:19]} 16. h3 {[%emt 0:00:19]} Bh5 {[%emt 0:00:08]} 17. Ra1 {[%emt 0:02:32]} Rad8 {[%emt 0:03:08]} 18. Qd3 {[%emt 0:01:26]} Bxf3 {[%emt 0:01:35]} 19. gxf3 {[%emt 0:00:22]} Na5 {[%emt 0:02:29]} 20. Rfe1 {[%emt 0:01:31]} Nc4 {[%emt 0:01:01]} 21. Bb3 {[%emt 0:01:07]} Rc8 {[%emt 0:00:53]} 22. Bxc4 {[%emt 0:00:58]} dxc4 {[%emt 0:00:11]} 23. Qf5 {[%emt 0:00:46]} Nh7 {[%emt 0:01:23]} 24. Qg4 {[%emt 0:02:12]} c5 {[%emt 0:01:24]} 25. Rad1 {[%emt 0:01:03]} cxd4 {[%emt 0:00:28]} 26. Rxd4 {[%emt 0:00:44]} Qxa3 {[%emt 0:00:18]} 27. Rc1 {[%emt 0:01:12]} Qxc1+ {[%emt 0:00:10]} 28. Kh2 {[%emt 0:00:20]} Qxc3 {[%emt 0:00:13]} 29. Qg3 {[%emt 0:00:19]} Kh8 {[%emt 0:00:32]} 30. Rf4 {[%emt 0:01:02]} g5 {[%emt 0:00:57]} 31. Rxf7 {[%emt 0:00:57]} gxh4 {[%emt 0:00:20]} 32. Qxh4 {[%emt 0:00:13]} Qe5+ {[%emt 0:00:17]} 33. f4 {[%emt 0:00:43]} Qe6 {[%emt 0:00:31]} 34. Ra7 {[%emt 0:01:06]} Ra8 {[%emt 0:00:14]} 35. Rc7 {[%emt 0:00:44]} Qf6 {[%emt 0:00:18]} 36. Qg4 {[%emt 0:00:23]} Rg8 {[%emt 0:00:31]} 37. Qd7 {[%emt 0:00:22]} Rg7 {[%emt 0:01:08]} 38. Rc8+ {[%emt 0:01:10]} Rxc8 {[%emt 0:00:29]} 39. Qxc8+ {[%emt 0:00:15]} Rg8 {[%emt 0:00:07]} 0-1

[Event "ONJK-DE 2019"]
[Site "Borne"]
[Date "2019.08.06"]
[Round "3.8"]
[White "Faybish, Dana"]
[Black "Ekker, Maxim"]
[Result "0-1"]
[ECO "C50"]
[WhiteElo "1254"]
[BlackElo "976"]
[Annotator "NA"]
[PlyCount "188"]
[EventDate "2019.08.05"]
[EventType "swiss"]
[EventCountry "NED"]
[SourceTitle "playchess.com"]
[Source "ChessBase"]
[SourceQuality "1"]
[TimeControl "2400+30"]

1. e4 {[%emt 0:00:00]} e5 {[%emt 0:00:00]} 2. Nf3 {[%emt 0:00:00]} Nc6 {[%emt 0:00:00]} 3. Bc4 {[%emt 0:00:00]} Nf6 {[%emt 0:00:00]} 4. d3 {[%emt 0:00:15]} Bc5 {[%emt 0:00:00]} 5. Nc3 {[%emt 0:00:21]} d6 {[%emt 0:00:06]} 6. h3 {[%emt 0:00:12]} O-O {[%emt 0:00:12]} 7. Bg5 {[%emt 0:00:14]} h6 {[%emt 0:00:15]} 8. Bh4 {[%emt 0:00:09]} Be6 {[%emt 0:01:39]} 9. Bb3 {[%emt 0:01:16]} Bb4 {[%emt 0:01:20]} 10. O-O {[%emt 0:00:35]} Bxc3 {[%emt 0:00:50]} 11. bxc3 {[%emt 0:00:31]} a6 {[%emt 0:00:36]} 12. a4 {[%emt 0:01:54]} b6 {[%emt 0:01:47]} 13. Qd2 {[%emt 0:05:15]} Kh8 {[%emt 0:01:54]} 14. Bd5 {[%emt 0:03:54]} Bxd5 {[%emt 0:00:39]} 15. exd5 {[%emt 0:00:12]} Na5 {[%emt 0:00:11]} 16. Nh2 {[%emt 0:01:00]} g5 {[%emt 0:02:59]} 17. Bxg5 {[%emt 0:01:02]} hxg5 {[%emt 0:00:42]} 18. Qxg5 {[%emt 0:00:05]} Nh7 {[%emt 0:00:06]} 19. Qf5 {[%emt 0:03:23]} Qc8 {[%emt 0:05:59]} 20. Qe4 {[%emt 0:00:30]} Rg8 {[%emt 0:00:57]} 21. Qh4 {[%emt 0:01:36]} Qe8 {[%emt 0:02:23]} 22. Rfe1 {[%emt 0:01:21]} Qd8 {[%emt 0:01:10]} 23. Qh5 {[%emt 0:01:38]} Qg5 {[%emt 0:00:23]} 24. Qf3 {[%emt 0:01:01]} f6 {[%emt 0:02:09]} 25. g3 {[%emt 0:01:10]} Qd2 {[%emt 0:02:03]} 26. Re4 {[%emt 0:01:57]} Qxc3 {[%emt 0:01:52]} 27. Rf1 {[%emt 0:01:45]} Qd2 {[%emt 0:03:51]} 28. Rh4 {[%emt 0:01:40]} Qg5 {[%emt 0:00:43]} 29. Rh5 {[%emt 0:02:35]} Qg6 {[%emt 0:03:03]} 30. Re1 {[%emt 0:01:38]} Raf8 {[%emt 0:03:36]} 31. Re4 {[%emt 0:00:58]} Rg7 {[%emt 0:00:20]} 32. Reh4 {[%emt 0:01:36]} Nb7 {[%emt 0:01:44]} 33. Ng4 {[%emt 0:01:07]} f5 {[%emt 0:00:57]} 34. Ne3 {[%emt 0:02:15]} f4 {[%emt 0:01:17]} 35. Ng2 {[%emt 0:00:11]} Rff7 {[%emt 0:00:29]} 36. gxf4 {[%emt 0:01:40]} exf4 {[%emt 0:00:32]} 37. Kh1 {[%emt 0:01:22]} Kg8 {[%emt 0:00:27]} 38. Qe4 {[%emt 0:02:32]} Qxe4 {[%emt 0:00:45]} 39. dxe4 {[%emt 0:00:07]} f3 {[%emt 0:00:26]} 40. Nf4 {[%emt 0:01:22]} Nc5 {[%emt 0:00:31]} 41. Rh6 {[%emt 0:02:04]} Rf6 {[%emt 0:02:25]} 42. Rxf6 {[%emt 0:03:30]} Nxf6 {[%emt 0:00:04]} 43. Ne6 {[%emt 0:00:45]} Nxe6 {[%emt 0:00:43]} 44. dxe6 {[%emt 0:00:04]} Kf8 {[%emt 0:00:46]} 45. Rf4 {[%emt 0:00:52]} Ke7 {[%emt 0:00:11]} 46. Rxf3 {[%emt 0:00:11]} Kxe6 {[%emt 0:00:17]} 47. Re3 {[%emt 0:00:42]} Rh7 {[%emt 0:01:09]} 48. f4 {[%emt 0:01:03]} Rh4 {[%emt 0:01:14]} 49. e5 {[%emt 0:00:39]} dxe5 {[%emt 0:00:37]} 50. Rxe5+ {[%emt 0:00:19]} Kd7 {[%emt 0:00:27]} 51. Rf5 {[%emt 0:00:11]} Ke7 {[%emt 0:01:37]} 52. Kg2 {[%emt 0:00:38]} Rh8 {[%emt 0:00:40]} 53. Rg5 {[%emt 0:00:38]} Rg8 {[%emt 0:00:30]} 54. Rxg8 {[%emt 0:00:14]} Nxg8 {[%emt 0:00:06]} 55. Kg3 {[%emt 0:00:15]} Kf6 {[%emt 0:00:01]} 56. Kg4 {[%emt 0:00:02]} Kg6 {[%emt 0:00:23]} 57. f5+ {[%emt 0:00:29]} Kf6 {[%emt 0:00:06]} 58. h4 {[%emt 0:00:16]} Nh6+ {[%emt 0:00:25]} 59. Kh5 {[%emt 0:00:35]} Nxf5 {[%emt 0:00:21]} 60. Kg4 {[%emt 0:00:15]} Kg6 {[%emt 0:00:37]} 61. Kf4 {[%emt 0:00:22]} Kf6 {[%emt 0:00:51]} 62. Ke4 {[%emt 0:00:03]} c6 {[%emt 0:00:36]} 63. h5 {[%emt 0:00:20]} Nh6 {[%emt 0:00:35]} 64. Kd4 {[%emt 0:00:28]} Ke6 {[%emt 0:00:58]} 65. Kc4 {[%emt 0:00:08]} Ke5 {[%emt 0:00:46]} 66. Kb4 {[%emt 0:00:17]} a5+ {[%emt 0:00:23]} 67. Kc4 {[%emt 0:00:19]} Ke4 {[%emt 0:00:24]} 68. c3 {[%emt 0:00:18]} Nf5 {[%emt 0:00:25]} 69. Kb3 {[%emt 0:00:48]} Kd3 {[%emt 0:00:11]} 70. Kb2 {[%emt 0:00:10]} Kc4 {[%emt 0:01:05]} 71. Kc2 {[%emt 0:00:10]} b5 {[%emt 0:00:16]} 72. axb5 {[%emt 0:00:27]} cxb5 {[%emt 0:00:03]} 73. Kb2 {[%emt 0:00:18]} a4 {[%emt 0:00:28]} 74. Kc2 {[%emt 0:00:23]} a3 {[%emt 0:00:18]} 75. Kb1 {[%emt 0:00:28]} Kxc3 {[%emt 0:00:17]} 76. Ka2 {[%emt 0:00:13]} b4 {[%emt 0:00:21]} 77. Ka1 {[%emt 0:00:25]} Kb3 {[%emt 0:01:33]} 78. Kb1 {[%emt 0:00:14]} a2+ {[%emt 0:00:06]} 79. Ka1 {[%emt 0:00:12]} Kc2 {[%emt 0:00:12]} 80. Kxa2 {[%emt 0:00:22]} b3+ {[%emt 0:00:10]} 81. Ka3 {[%emt 0:00:11]} b2 {[%emt 0:00:28]} 82. Kb4 {[%emt 0:00:06]} b1=Q+ {[%emt 0:00:26]} 83. Kc5 {[%emt 0:00:03]} Qd1 {[%emt 0:00:50]} 84. Kc6 {[%emt 0:00:39]} Qd4 {[%emt 0:00:13]} 85. Kc7 {[%emt 0:00:21]} Qd5 {[%emt 0:00:16]} 86. Kc8 {[%emt 0:00:14]} Qd6 {[%emt 0:00:01]} 87. h6 {[%emt 0:00:17]} Nxh6 {[%emt 0:00:15]} 88. Kb7 {[%emt 0:00:08]} Qc5 {[%emt 0:00:16]} 89. Kb8 {[%emt 0:00:14]} Qe7 {[%emt 0:00:18]} 90. Kc8 {[%emt 0:00:20]} Kc3 {[%emt 0:00:04]} 91. Kb8 {[%emt 0:00:10]} Kb4 {[%emt 0:00:47]} 92. Ka8 {[%emt 0:00:32]} Kb5 {[%emt 0:00:07]} 93. Kb8 {[%emt 0:00:14]} Kb6 {[%emt 0:00:54]} 94. Kc8 {[%emt 0:00:35]} Qc7# {[%emt 0:00:09]} 0-1

[Event "ONJK-DE 2019"]
[Site "Borne"]
[Date "2019.08.06"]
[Round "3.9"]
[White "Kazarjan, Gachatur"]
[Black "Madularea, David"]
[Result "0-1"]
[ECO "B33"]
[WhiteElo "1490"]
[BlackElo "1234"]
[Annotator "NA"]
[PlyCount "60"]
[EventDate "2019.08.05"]
[EventType "swiss"]
[EventCountry "NED"]
[SourceTitle "playchess.com"]
[Source "ChessBase"]
[SourceQuality "1"]
[TimeControl "2400+30"]

1. e4 {[%emt 0:00:00]} c5 {[%emt 0:00:00]} 2. Nf3 {[%emt 0:00:00]} Nc6 {[%emt 0:00:00]} 3. d4 {[%emt 0:00:00]} cxd4 {[%emt 0:00:12]} 4. Nxd4 {[%emt 0:00:00]} Nf6 {[%emt 0:00:34]} 5. Nc3 {[%emt 0:00:00]} d6 {[%emt 0:01:26]} 6. f3 {[%emt 0:00:00]} e5 {[%emt 0:00:45]} 7. Ndb5 {[%emt 0:00:14]} a6 {[%emt 0:00:40]} 8. Na3 {[%emt 0:00:04]} b5 {[%emt 0:00:37]} 9. Nd5 {[%emt 0:00:06]} Nxd5 {[%emt 0:02:36]} 10. exd5 {[%emt 0:00:09]} Ne7 {[%emt 0:01:48]} 11. b4 {[%emt 0:00:51]} Qb6 {[%emt 0:01:10]} 12. Rb1 {[%emt 0:01:38]} Qd4 {[%emt 0:04:57]} 13. Qxd4 {[%emt 0:00:55]} exd4 {[%emt 0:00:26]} 14. Bb2 {[%emt 0:00:09]} Nxd5 {[%emt 0:00:31]} 15. Bxd4 {[%emt 0:00:07]} Bf5 {[%emt 0:01:10]} 16. Bd3 {[%emt 0:01:24]} Bxd3 {[%emt 0:00:37]} 17. cxd3 {[%emt 0:00:20]} Nf4 {[%emt 0:00:19]} 18. g3 {[%emt 0:03:24]} Ne6 {[%emt 0:04:31]} 19. Be3 {[%emt 0:01:05]} Rc8 {[%emt 0:00:00]} 20. Bd2 {[%emt 0:01:46]} g6 {[%emt 0:00:39]} 21. O-O {[%emt 0:00:15]} Bg7 {[%emt 0:00:47]} 22. Rbc1 {[%emt 0:03:39]} O-O {[%emt 0:01:26]} 23. Nc2 {[%emt 0:00:45]} Bb2 {[%emt 0:00:22]} 24. Ne3 {[%emt 0:00:52]} Bxc1 {[%emt 0:00:17]} 25. Bxc1 {[%emt 0:00:04]} Rc3 {[%emt 0:01:00]} 26. Bb2 {[%emt 0:00:29]} Rxd3 {[%emt 0:00:21]} 27. Ng4 {[%emt 0:00:17]} Nd4 {[%emt 0:01:39]} 28. Ba1 {[%emt 0:01:51]} f5 {[%emt 0:01:34]} 29. Nf2 {[%emt 0:00:10]} Rd2 {[%emt 0:00:55]} 30. Kg2 {[%emt 0:01:39]} Nc2 {[%emt 0:00:47]} 0-1

[Event "ONJK-DE 2019"]
[Site "Borne"]
[Date "2019.08.06"]
[Round "3.10"]
[White "Mainka, Ingmar"]
[Black "Arnold, Rhys"]
[Result "1/2-1/2"]
[ECO "B33"]
[WhiteElo "1287"]
[BlackElo "1604"]
[Annotator "NA"]
[PlyCount "93"]
[EventDate "2019.08.05"]
[EventType "swiss"]
[EventCountry "NED"]
[SourceTitle "playchess.com"]
[Source "ChessBase"]
[SourceQuality "1"]
[TimeControl "2400+30"]

1. e4 {[%emt 0:00:00]} c5 {[%emt 0:00:00]} 2. Nf3 {[%emt 0:00:00]} Nc6 {[%emt 0:00:00]} 3. d4 {[%emt 0:00:00]} cxd4 {[%emt 0:00:00]} 4. Nxd4 {[%emt 0:00:00]} e5 {[%emt 0:00:00]} 5. Nf3 {[%emt 0:00:13]} Nf6 {[%emt 0:00:10]} 6. Bg5 {[%emt 0:00:21]} d6 {[%emt 0:00:59]} 7. Nc3 {[%emt 0:00:08]} Be7 {[%emt 0:00:30]} 8. Bc4 {[%emt 0:00:22]} a6 {[%emt 0:00:37]} 9. Bxf6 {[%emt 0:00:18]} Bxf6 {[%emt 0:00:45]} 10. O-O {[%emt 0:00:21]} O-O {[%emt 0:00:23]} 11. Nd2 {[%emt 0:01:20]} Be6 {[%emt 0:02:43]} 12. Bd5 {[%emt 0:01:14]} Bxd5 {[%emt 0:00:53]} 13. Nxd5 {[%emt 0:00:14]} Rc8 {[%emt 0:00:42]} 14. c3 {[%emt 0:00:50]} Bg5 {[%emt 0:02:19]} 15. Nc4 {[%emt 0:00:46]} Ne7 {[%emt 0:01:41]} 16. Nce3 {[%emt 0:00:54]} Bxe3 {[%emt 0:00:11]} 17. Nxe3 {[%emt 0:00:06]} Qd7 {[%emt 0:02:42]} 18. Qb3 {[%emt 0:00:45]} Rfd8 {[%emt 0:01:54]} 19. Rad1 {[%emt 0:00:16]} Rc5 {[%emt 0:02:57]} 20. c4 {[%emt 0:02:28]} Rcc8 {[%emt 0:01:00]} 21. Nd5 {[%emt 0:00:34]} Nxd5 {[%emt 0:00:20]} 22. Rxd5 {[%emt 0:00:07]} Qc6 {[%emt 0:02:51]} 23. Rfd1 {[%emt 0:03:01]} b6 {[%emt 0:03:50]} 24. h3 {[%emt 0:01:43]} h6 {[%emt 0:01:07]} 25. Qb4 {[%emt 0:00:34]} a5 {[%emt 0:05:25]} 26. Qb5 {[%emt 0:01:40]} Qxb5 {[%emt 0:03:25]} 27. Rxb5 {[%emt 0:00:16]} Rxc4 {[%emt 0:00:41]} 28. Rxe5 {[%emt 0:00:34]} Rc6 {[%emt 0:03:14]} 29. Red5 {[%emt 0:00:19]} Kf8 {[%emt 0:00:12]} 30. e5 {[%emt 0:01:01]} Ke7 {[%emt 0:00:23]} 31. exd6+ {[%emt 0:00:43]} Rdxd6 {[%emt 0:00:14]} 32. Re1+ {[%emt 0:02:33]} Kd7 {[%emt 0:00:33]} 33. Red1 {[%emt 0:00:59]} Ke7 {[%emt 0:01:32]} 34. Re1+ {[%emt 0:00:49]} Kf8 {[%emt 0:01:07]} 35. Rde5 {[%emt 0:00:13]} Re6 {[%emt 0:00:12]} 36. Rxe6 {[%emt 0:00:07]} Rxe6 {[%emt 0:00:08]} 37. Kf1 {[%emt 0:00:08]} Ke7 {[%emt 0:00:07]} 38. Rxe6+ {[%emt 0:01:04]} Kxe6 {[%emt 0:00:18]} 39. Ke2 {[%emt 0:00:04]} f6 {[%emt 0:00:20]} 40. Ke3 {[%emt 0:00:25]} Ke5 {[%emt 0:01:13]} 41. f4+ {[%emt 0:00:37]} Kd5 {[%emt 0:00:34]} 42. Kd3 {[%emt 0:00:21]} b5 {[%emt 0:00:23]} 43. b3 {[%emt 0:00:45]} b4 {[%emt 0:00:17]} 44. g4 {[%emt 0:00:51]} g6 {[%emt 0:00:57]} 45. h4 {[%emt 0:00:35]} h5 {[%emt 0:00:39]} 46. g5 {[%emt 0:00:36]} f5 {[%emt 0:00:12]} 47. Ke3 {[%emt 0:00:14]} 1/2-1/2

[Event "ONJK-DE 2019"]
[Site "Borne"]
[Date "2019.08.06"]
[Round "3.11"]
[White "Cappan, Stan"]
[Black "Huizingh, Lucas"]
[Result "1-0"]
[ECO "C40"]
[WhiteElo "1319"]
[BlackElo "100"]
[Annotator "NA"]
[PlyCount "45"]
[EventDate "2019.08.05"]
[EventType "swiss"]
[EventCountry "NED"]
[SourceTitle "playchess.com"]
[Source "ChessBase"]
[SourceQuality "1"]
[TimeControl "2400+30"]

1. e4 {[%emt 0:00:00]} e5 {[%emt 0:00:00]} 2. Nf3 {[%emt 0:00:00]} Bc5 {[%emt 0:00:00]} 3. Nc3 {[%emt 0:00:04]} Qf6 {[%emt 0:00:00]} 4. Nd5 {[%emt 0:00:40]} Qg6 {[%emt 0:00:38]} 5. Nxc7+ {[%emt 0:00:21]} Kd8 {[%emt 0:00:00]} 6. Nxa8 {[%emt 0:00:20]} Nc6 {[%emt 0:00:00]} 7. d3 {[%emt 0:00:25]} Qf6 {[%emt 0:00:00]} 8. Bg5 {[%emt 0:00:14]} Bb4+ {[%emt 0:00:04]} 9. c3 {[%emt 0:00:03]} Qxg5 {[%emt 0:01:17]} 10. Nxg5 {[%emt 0:00:30]} Be7 {[%emt 0:01:19]} 11. Nxf7+ {[%emt 0:00:20]} Ke8 {[%emt 0:00:54]} 12. Nxh8 {[%emt 0:00:20]} d6 {[%emt 0:00:00]} 13. Qh5+ {[%emt 0:00:22]} g6 {[%emt 0:00:00]} 14. Nxg6 {[%emt 0:00:30]} Nf6 {[%emt 0:00:09]} 15. Nc7+ {[%emt 0:01:14]} Kd7 {[%emt 0:00:35]} 16. Qg5 {[%emt 0:01:04]} Ne8 {[%emt 0:00:08]} 17. Nxe7 {[%emt 0:00:22]} Kxc7 {[%emt 0:00:08]} 18. Nd5+ {[%emt 0:02:23]} Kd7 {[%emt 0:00:45]} 19. Qf5+ {[%emt 0:00:49]} Kd8 {[%emt 0:00:00]} 20. Qf7 {[%emt 0:00:45]} Bg4 {[%emt 0:00:08]} 21. f3 {[%emt 0:00:28]} Bc8 {[%emt 0:00:13]} 22. g3 {[%emt 0:00:19]} Ne7 {[%emt 0:00:34]} 23. Qxe7# {[%emt 0:00:23]} 1-0